fUST/lending_fUST_20260420
["ID","MTS","AMOUNT","RATE_DAILY","PERIOD"]
[420841689,1776621041252,-500.0,0.00019169,30]
[420841690,1776621041262,-500.0,0.00019169,30]
[420841691,1776621041271,-500.0,0.00019169,30]
[420841692,1776621041281,-734.6991978,0.00019169,30]
[420841693,1776621041290,-590.5082894,0.00019169,30]
[420841694,1776621041299,-500.0,0.00019169,30]
[420841695,1776621041308,-500.0,0.00019169,30]
[420841696,1776621041318,-500.0,0.00019169,30]
[420841697,1776621041327,-500.0,0.00019169,30]
[420841698,1776621041336,-500.0,0.00019169,30]
[420841699,1776621041345,-500.0,0.00019169,30]
[420841700,1776621041355,-500.0,0.00019169,30]
[420841701,1776621041365,-811.8898787,0.00019169,30]
[420841702,1776621041375,-219.2925,0.00019169,30]
[420841703,1776621041384,-500.0,0.00019169,30]
[420841704,1776621041394,-740.3776974,0.00019169,30]
[420841705,1776621041403,-586.65297465,0.00019173,2]
[420841706,1776621041413,-500.0,0.00019173,2]
[420841707,1776621041422,-500.0,0.00019173,2]
[420841708,1776621041432,-155.0,0.00019177,2]
[420841709,1776621041443,-167.954485,0.00019178,2]
[420841710,1776621041454,-386.253221,0.00019178,2]
[420841711,1776621041463,-1107.1237,0.00019178,2]
[420841712,1776621041473,-170.782146,0.00019178,2]
[420841713,1776621041482,-500.0,0.00019178,2]
[420841714,1776621041492,-1619.19,0.00019178,2]
[420841715,1776621041502,-500.0,0.00019178,2]
[420841716,1776621041512,-500.0,0.00019178,2]
[420841717,1776621041522,-500.0,0.00019178,2]
[420841718,1776621041532,-500.0,0.00019178,2]
[420841719,1776621041541,-825.16,0.00019178,2]
[420841720,1776621041551,-500.0,0.00019178,2]
[420841721,1776621041560,-500.0,0.00019178,2]
[420841722,1776621041569,-500.0,0.00019178,2]
[420841723,1776621041578,-500.0,0.00019178,2]
[420841724,1776621041588,-1000.0,0.00019178,2]
[420841725,1776621041597,-1290.06,0.00019178,2]
[420841726,1776621041607,-500.0,0.00019178,2]
[420841727,1776621041616,-500.0,0.00019178,2]
[420841728,1776621041626,-500.0,0.00019178,2]
[420841729,1776621041635,-500.0,0.00019178,2]
[420841730,1776621041644,-500.0,0.00019178,2]
[420841731,1776621041653,-500.0,0.00019178,2]
[420841732,1776621041663,-500.0,0.00019178,2]
[420841733,1776621041672,-500.0,0.00019178,2]
[420841734,1776621041682,-500.0,0.00019178,2]
[420841735,1776621041691,-500.0,0.00019178,2]
[420841736,1776621041701,-500.0,0.00019178,2]
[420841737,1776621041710,-500.0,0.00019178,2]
[420841738,1776621041719,-500.0,0.00019178,2]
[420841739,1776621041729,-500.0,0.00019178,2]
[420841740,1776621041738,-500.0,0.00019178,2]
[420841741,1776621041748,-500.0,0.00019178,2]
[420841742,1776621041758,-221.86433991,0.00019178,2]
[420841743,1776621041767,-805.55,0.00019178,2]
[420841744,1776621041777,-500.0,0.00019178,2]
[420841745,1776621041787,-500.0,0.00019178,2]
[420841746,1776621041797,-500.0,0.00019178,2]
[420841747,1776621041808,-500.0,0.00019178,2]
[420841748,1776621041818,-500.0,0.00019178,2]
[420841749,1776621041830,-500.0,0.00019178,2]
[420841750,1776621041840,-1086.91,0.00019178,2]
[420841751,1776621041852,-329.16474138,0.00019178,2]
[420841752,1776621041861,-572.97,0.00019178,2]
[420841753,1776621041870,-503.50981507,0.00019178,2]
[420841754,1776621041879,-500.0,0.00019178,2]
[420841755,1776621041888,-500.0,0.00019178,2]
[420841756,1776621041898,-500.0,0.00019178,2]
[420841757,1776621041907,-500.0,0.00019178,2]
[420841758,1776621041916,-500.0,0.00019178,2]
[420841759,1776621041925,-207.47302602,0.00019178,2]
[420841760,1776621041935,-500.0,0.00019178,2]
[420841761,1776621041944,-154.16941216,0.00019178,2]
[420841762,1776621041953,-500.0,0.00019178,2]
[420841763,1776621041963,-239.96796541,0.00019178,2]
[420841764,1776621041972,-500.0,0.00019178,2]
[420841765,1776621041982,-500.0,0.00019178,2]
[420841766,1776621041992,-500.0,0.00019178,2]
[420841767,1776621042002,-500.0,0.00019178,2]
[420841768,1776621042013,-542.50267995,0.00019178,2]
[420841769,1776621042024,-500.0,0.00019178,2]
[420841770,1776621042034,-500.0,0.00019178,2]
[420841771,1776621042045,-500.0,0.00019178,2]
[420841772,1776621042055,-500.0,0.00019178,2]
[420841773,1776621042064,-500.0,0.00019178,2]
[420841774,1776621042074,-500.0,0.00019178,2]
[420841775,1776621042084,-500.0,0.00019178,2]
[420841776,1776621042095,-500.0,0.00019178,2]
[420841777,1776621042104,-500.0,0.00019178,2]
[420841778,1776621042114,-500.0,0.00019178,2]
[420841779,1776621042125,-500.0,0.00019178,2]
[420841780,1776621042135,-500.0,0.00019178,2]
[420841781,1776621042145,-506.50627994,0.00019178,2]
[420841782,1776621042154,-500.0,0.00019178,2]
[420841783,1776621042164,-500.0,0.00019178,2]
[420841784,1776621042174,-500.0,0.00019178,2]
[420841785,1776621042184,-500.0,0.00019178,2]
[420841786,1776621042194,-500.0,0.00019178,2]
[420841787,1776621042205,-2097.9,0.00019178,2]
[420841788,1776621042215,-500.0,0.00019178,2]
[420841789,1776621042226,-500.0,0.00019178,2]
[420841790,1776621042236,-500.0,0.00019178,2]
[420841791,1776621042246,-500.0,0.00019178,2]
[420841792,1776621042257,-500.0,0.00019178,2]
[420841793,1776621042267,-500.0,0.00019178,2]
[420841794,1776621042276,-500.0,0.00019178,2]
[420841795,1776621042285,-500.0,0.00019178,2]
[420841796,1776621042295,-500.0,0.00019178,2]
[420841797,1776621042304,-500.0,0.00019178,2]
[420841798,1776621042313,-500.0,0.00019178,2]
[420841799,1776621042323,-500.0,0.00019178,2]
[420841800,1776621042332,-507.11885242,0.00019178,2]
[420841801,1776621042341,-500.0,0.00019178,2]
[420841802,1776621042351,-500.0,0.00019178,2]
[420841803,1776621042360,-500.0,0.00019178,2]
[420841804,1776621042370,-500.0,0.00019178,2]
[420841805,1776621042380,-500.0,0.00019178,2]
[420841806,1776621042389,-500.0,0.00019178,2]
[420841807,1776621042398,-500.0,0.00019178,2]
[420841808,1776621042407,-500.0,0.00019178,2]
[420841809,1776621042417,-500.0,0.00019178,2]
[420841810,1776621042426,-1023.59,0.00019178,2]
[420841811,1776621042435,-1297.19,0.00019178,2]
[420841812,1776621042444,-500.0,0.00019178,2]
[420841813,1776621042454,-500.0,0.00019178,2]
[420841814,1776621042463,-500.0,0.00019178,2]
[420841815,1776621042472,-500.0,0.00019178,2]
[420841816,1776621042482,-500.0,0.00019178,2]
[420841817,1776621042491,-500.0,0.00019178,2]
[420841818,1776621042501,-500.0,0.00019178,2]
[420841819,1776621042510,-500.0,0.00019178,2]
[420841820,1776621042520,-500.0,0.00019178,2]
[420841822,1776621042529,-500.0,0.00019178,2]
[420841823,1776621042538,-500.0,0.00019178,2]
[420841824,1776621042548,-500.0,0.00019178,2]
[420841825,1776621042558,-500.0,0.00019178,2]
[420841826,1776621042568,-505.53046494,0.00019178,2]
[420841827,1776621042577,-500.0,0.00019178,2]
[420841828,1776621042586,-500.0,0.00019178,2]
[420841829,1776621042596,-500.0,0.00019178,2]
[420841830,1776621042605,-500.0,0.00019178,2]
[420841831,1776621042615,-500.0,0.00019178,2]
[420841832,1776621042624,-500.0,0.00019178,2]
[420841834,1776621042634,-500.0,0.00019178,2]
[420841836,1776621042643,-500.0,0.00019178,2]
[420841838,1776621042652,-500.0,0.00019178,2]
[420841839,1776621042662,-685.48,0.00019178,2]
[420841840,1776621042671,-503.37526842,0.00019178,2]
[420841841,1776621042680,-533.92825473,0.00019178,2]
[420841842,1776621042689,-500.0,0.00019178,2]
[420841843,1776621042699,-500.0,0.00019178,2]
[420841844,1776621042709,-500.0,0.00019178,2]
[420841846,1776621042719,-500.0,0.00019178,2]
[420841848,1776621042730,-500.0,0.00019178,2]
[420841849,1776621042739,-500.0,0.00019178,2]
[420841850,1776621042748,-500.0,0.00019178,2]
[420841851,1776621042757,-500.0,0.00019178,2]
[420841852,1776621042766,-548.17,0.00019178,2]
[420841853,1776621042775,-500.0,0.00019178,2]
[420841854,1776621042784,-500.0,0.00019178,2]
[420841855,1776621042793,-500.0,0.00019178,2]
[420841856,1776621042802,-347.70673977,0.00019178,2]
[420841857,1776621042811,-429.8437649,0.00019178,2]
[420841859,1776621042820,-500.0,0.00019178,2]
[420841860,1776621042830,-500.0,0.00019178,2]
[420841861,1776621042839,-500.0,0.00019178,2]
[420841862,1776621042848,-500.0,0.00019178,2]
[420841863,1776621042857,-500.0,0.00019178,2]
[420841864,1776621042866,-500.0,0.00019178,2]
[420841865,1776621042875,-500.0,0.00019178,2]
[420841866,1776621042885,-1000.0,0.00019178,2]
[420841867,1776621042894,-500.0,0.00019178,2]
[420841868,1776621042904,-500.0,0.00019178,2]
[420841869,1776621042913,-500.0,0.00019178,2]
[420841870,1776621042922,-500.0,0.00019178,2]
[420841871,1776621042931,-500.0,0.00019178,2]
[420841872,1776621042940,-509.40830957,0.00019178,2]
[420841873,1776621042949,-500.0,0.00019178,2]
[420841874,1776621042958,-1315.19,0.00019178,2]
[420841875,1776621042967,-500.0,0.00019178,2]
[420841876,1776621042976,-500.0,0.00019178,2]
[420841877,1776621042985,-500.0,0.00019178,2]
[420841878,1776621042994,-500.0,0.00019178,2]
[420841879,1776621043003,-2752.35,0.00019178,2]
[420841880,1776621043012,-500.0,0.00019178,2]
[420841881,1776621043021,-508.89907861,0.00019178,2]
[420841882,1776621043030,-500.0,0.00019178,2]
[420841883,1776621043040,-500.0,0.00019178,2]
[420841884,1776621043048,-500.0,0.00019178,2]
[420841885,1776621043058,-502.6,0.00019178,2]
[420841886,1776621043067,-500.0,0.00019178,2]
[420841887,1776621043076,-500.0,0.00019178,2]
[420841888,1776621043085,-1841.38,0.00019178,2]
[420841889,1776621043094,-1324.02,0.00019178,2]
[420841890,1776621043104,-374.79720323,0.00019178,2]
[420841891,1776621043112,-506.49883683,0.00019178,2]
[420841892,1776621043121,-500.0,0.00019178,2]
[420841893,1776621043131,-1547.58,0.00019178,2]
[420841894,1776621043140,-2077.83,0.00019178,2]
[420841895,1776621043150,-1065.56,0.00019178,2]
[420841896,1776621043159,-500.0,0.00019178,2]
[420841897,1776621043168,-500.0,0.00019178,2]
[420841898,1776621043177,-500.0,0.00019178,2]
[420841899,1776621043187,-500.0,0.00019178,2]
[420841900,1776621043195,-504.46302404,0.00019178,2]
[420841901,1776621043206,-500.0,0.00019178,2]
[420841902,1776621043216,-500.0,0.00019178,2]
[420841903,1776621043225,-1121.98,0.00019178,2]
[420841904,1776621043234,-500.0,0.00019178,2]
[420841905,1776621043243,-500.0,0.00019178,2]
[420841906,1776621043253,-500.0,0.00019178,2]
[420841907,1776621043262,-500.0,0.00019178,2]
[420841908,1776621043272,-500.0,0.00019178,2]
[420841909,1776621043280,-500.0,0.00019178,2]
[420841910,1776621043290,-500.0,0.00019178,2]
[420841911,1776621043299,-1364.21,0.00019178,2]
[420841912,1776621043308,-1228.4,0.00019178,2]
[420841913,1776621043318,-500.0,0.00019178,2]
[420841914,1776621043328,-2132.71,0.00019178,2]
[420841915,1776621043337,-500.0,0.00019178,2]
[420841916,1776621043346,-500.0,0.00019178,2]
[420841917,1776621043356,-500.0,0.00019178,2]
[420841918,1776621043365,-500.0,0.00019178,2]
[420841919,1776621043374,-500.0,0.00019178,2]
[420841920,1776621043383,-500.0,0.00019178,2]
[420841921,1776621043392,-500.0,0.00019178,2]
[420841922,1776621043401,-500.0,0.00019178,2]
[420841923,1776621043410,-500.0,0.00019178,2]
[420841924,1776621043419,-500.0,0.00019178,2]
[420841926,1776621043428,-500.0,0.00019178,2]
[420841927,1776621043438,-500.0,0.00019178,2]
[420841929,1776621043447,-500.0,0.00019178,2]
[420841931,1776621043456,-500.0,0.00019178,2]
[420841933,1776621043466,-500.0,0.00019178,2]
[420841934,1776621043475,-500.0,0.00019178,2]
[420841936,1776621043486,-500.0,0.00019178,2]
[420841938,1776621043495,-500.0,0.00019178,2]
[420841940,1776621043504,-500.0,0.00019178,2]
[420841942,1776621043514,-500.0,0.00019178,2]
[420841944,1776621043524,-500.0,0.00019178,2]
[420841946,1776621043533,-507.48216865,0.00019178,2]
[420841948,1776621043542,-500.0,0.00019178,2]
[420841950,1776621043552,-508.754354,0.00019178,2]
[420841952,1776621043561,-259.73168493,0.00019178,2]
[420841954,1776621043570,-500.0,0.00019178,2]
[420841956,1776621043580,-1733.35,0.00019178,2]
[420841958,1776621043589,-748.65,0.00019178,2]
[420841960,1776621043598,-500.0,0.00019178,2]
[420841962,1776621043607,-249.2983301,0.00019178,2]
[420841964,1776621043617,-649.73997125,0.00019178,2]
[420841966,1776621043626,-500.0,0.00019178,2]
[420841968,1776621043635,-500.0,0.00019178,2]
[420841970,1776621043644,-500.0,0.00019178,2]
[420841972,1776621043653,-166.89866379,0.00019178,2]
[420841974,1776621043662,-500.0,0.00019178,2]
[420841976,1776621043671,-1629.21,0.00019178,2]
[420841978,1776621043681,-2547.83,0.00019178,2]
[420841980,1776621043690,-508.23929208,0.00019178,2]
[420841982,1776621043699,-500.0,0.00019178,2]
[420841984,1776621043709,-509.39659998,0.00019178,2]
[420841986,1776621043718,-500.0,0.00019178,2]
[420841988,1776621043728,-500.0,0.00019178,2]
[420841990,1776621043737,-500.0,0.00019178,2]
[420841992,1776621043746,-691.64,0.00019178,2]
[420841994,1776621043755,-512.0235542,0.00019178,2]
[420841996,1776621043764,-500.0,0.00019178,2]
[420841998,1776621043773,-500.0,0.00019178,2]
[420842000,1776621043782,-195.90335576,0.00019178,2]
[420842002,1776621043792,-500.0,0.00019178,2]
[420842004,1776621043801,-500.0,0.00019178,2]
[420842006,1776621043811,-500.0,0.00019178,2]
[420842008,1776621043820,-509.69471022,0.00019178,2]
[420842010,1776621043829,-500.0,0.00019178,2]
[420842012,1776621043838,-500.0,0.00019178,2]
[420842014,1776621043848,-500.0,0.00019178,2]
[420842016,1776621043857,-500.0,0.00019178,2]
[420842018,1776621043866,-500.0,0.00019178,2]
[420842020,1776621043876,-810.67,0.00019178,2]
[420842022,1776621043885,-500.0,0.00019178,2]
[420842024,1776621043895,-503.2776434,0.00019178,2]
[420842026,1776621043904,-1105.34,0.00019178,2]
[420842028,1776621043914,-500.0,0.00019178,2]
[420842030,1776621043923,-610.15528491,0.00019178,2]
[420842032,1776621043933,-500.0,0.00019178,2]
[420842035,1776621043944,-500.0,0.00019178,2]
[420842037,1776621043953,-505.63988338,0.00019178,2]
[420842039,1776621043963,-500.0,0.00019178,2]
[420842041,1776621043972,-500.0,0.00019178,2]
[420842043,1776621043981,-500.0,0.00019178,2]
[420842045,1776621043991,-511.89286908,0.00019178,2]
[420842046,1776621044001,-1184.84,0.00019178,2]
[420842048,1776621044010,-210.55133002,0.00019178,2]
[420842050,1776621044020,-518.0,0.00019178,2]
[420842052,1776621044029,-1251.39,0.00019178,2]
[420842054,1776621044038,-500.0,0.00019178,2]
[420842056,1776621044047,-956.35,0.00019178,2]
[420842058,1776621044056,-1606.58,0.00019178,2]
[420842060,1776621044065,-500.0,0.00019178,2]
[420842062,1776621044074,-362.44649789,0.00019178,2]
[420842064,1776621044083,-500.0,0.00019178,2]
[420842066,1776621044092,-500.0,0.00019178,2]
[420842068,1776621044101,-508.27313522,0.00019178,2]
[420842087,1776621044110,-500.0,0.00019178,2]
[420842091,1776621044287,-404.70659784,0.00019178,2]
[420842093,1776621044296,-500.0,0.00019178,2]
[420842095,1776621044305,-500.0,0.00019178,2]
[420842097,1776621044315,-500.0,0.00019178,2]
[420842099,1776621044324,-500.0,0.00019178,2]
[420842101,1776621044333,-500.0,0.00019178,2]
[420842103,1776621044342,-500.0,0.00019178,2]
[420842105,1776621044352,-500.0,0.00019178,2]
[420842107,1776621044362,-500.0,0.00019178,2]
[420842109,1776621044371,-502.3253463,0.00019178,2]
[420842110,1776621044380,-500.0,0.00019178,2]
[420842112,1776621044390,-500.0,0.00019178,2]
[420842113,1776621044399,-500.0,0.00019178,2]
[420842114,1776621044408,-500.0,0.00019178,2]
[420842115,1776621044418,-500.0,0.00019178,2]
[420842116,1776621044428,-500.0,0.00019178,2]
[420842117,1776621044437,-502.83527293,0.00019178,2]
[420842118,1776621044447,-500.0,0.00019178,2]
[420842119,1776621044456,-500.0,0.00019178,2]
[420842120,1776621044465,-500.0,0.00019178,2]
[420842121,1776621044475,-6215.88,0.00019178,2]
[420842122,1776621044484,-500.0,0.00019178,2]
[420842123,1776621044493,-1228.08,0.00019178,2]
[420842124,1776621044502,-3305.78,0.00019178,2]
[420842125,1776621044512,-1064.22,0.00019178,2]
[420842126,1776621044521,-500.0,0.00019178,2]
[420842127,1776621044531,-500.0,0.00019178,2]
[420842128,1776621044540,-500.0,0.00019178,2]
[420842129,1776621044550,-500.0,0.00019178,2]
[420842130,1776621044559,-500.0,0.00019178,2]
[420842131,1776621044568,-500.0,0.00019178,2]
[420842132,1776621044578,-500.0,0.00019178,2]
[420842133,1776621044587,-500.0,0.00019178,2]
[420842134,1776621044596,-500.0,0.00019178,2]
[420842135,1776621044606,-1677.69,0.00019178,2]
[420842136,1776621044615,-500.0,0.00019178,2]
[420842137,1776621044626,-506.39826948,0.00019178,2]
[420842138,1776621044637,-508.51556588,0.00019178,2]
[420842139,1776621044647,-500.0,0.00019178,2]
[420842140,1776621044657,-895.87,0.00019178,2]
[420842141,1776621044667,-6170.38,0.00019178,2]
[420842142,1776621044676,-509.71396016,0.00019178,2]
[420842143,1776621044685,-500.0,0.00019178,2]
[420842144,1776621044695,-500.0,0.00019178,2]
[420842145,1776621044705,-500.0,0.00019178,2]
[420842146,1776621044715,-500.0,0.00019178,2]
[420842147,1776621044725,-507.23905204,0.00019178,2]
[420842148,1776621044735,-643.21,0.00019178,2]
[420842149,1776621044745,-513.61205389,0.00019178,2]
[420842150,1776621044757,-1281.71,0.00019178,2]
[420842151,1776621044768,-220.37719461,0.00019178,2]
[420842152,1776621044778,-1683.44,0.00019178,2]
[420842153,1776621044788,-500.0,0.00019178,2]
[420842154,1776621044797,-500.0,0.00019178,2]
[420842155,1776621044807,-1765.51,0.00019178,2]
[420842156,1776621044817,-1192.37,0.00019178,2]
[420842157,1776621044828,-500.0,0.00019178,2]
[420842158,1776621044840,-500.0,0.00019178,2]
[420842159,1776621044850,-1450.94,0.00019178,2]
[420842160,1776621044860,-500.0,0.00019178,2]
[420842161,1776621044869,-704.37,0.00019178,2]
[420842162,1776621044878,-414.49339529,0.00019178,2]
[420842163,1776621044888,-500.0,0.00019178,2]
[420842164,1776621044898,-500.0,0.00019178,2]
[420842165,1776621044907,-1693.58,0.00019178,2]
[420842166,1776621044916,-500.0,0.00019178,2]
[420842167,1776621044926,-500.0,0.00019178,2]
[420842168,1776621044935,-500.0,0.00019178,2]
[420842169,1776621044945,-500.0,0.00019178,2]
[420842170,1776621044954,-500.0,0.00019178,2]
[420842171,1776621044964,-500.0,0.00019178,2]
[420842172,1776621044974,-500.0,0.00019178,2]
[420842173,1776621044984,-646.1743651,0.00019178,2]
[420842174,1776621044993,-500.0,0.00019178,2]
[420842175,1776621045003,-500.0,0.00019178,2]
[420842176,1776621045011,-500.0,0.00019178,2]
[420842177,1776621045021,-500.0,0.00019178,2]
[420842178,1776621045032,-628.52,0.00019178,2]
[420842179,1776621045042,-510.47,0.00019178,2]
[420842180,1776621045051,-500.0,0.00019178,2]
[420842181,1776621045062,-505.10272966,0.00019178,2]
[420842182,1776621045071,-500.0,0.00019178,2]
[420842183,1776621045081,-500.0,0.00019178,2]
[420842184,1776621045091,-742.39,0.00019178,2]
[420842185,1776621045101,-506.16229928,0.00019178,2]
[420842186,1776621045110,-500.0,0.00019178,2]
[420842187,1776621045120,-596.95989298,0.00019178,2]
[420842188,1776621045130,-512.08110846,0.00019178,2]
[420842189,1776621045139,-511.94761123,0.00019178,2]
[420842190,1776621045149,-500.0,0.00019178,2]
[420842191,1776621045159,-2191.73,0.00019178,2]
[420842192,1776621045168,-500.0,0.00019178,2]
[420842193,1776621045178,-512.79526339,0.00019178,2]
[420842194,1776621045187,-500.0,0.00019178,2]
[420842195,1776621045197,-508.43944678,0.00019178,2]
[420842196,1776621045206,-500.0,0.00019178,2]
[420842197,1776621045216,-500.0,0.00019178,2]
[420842198,1776621045225,-500.0,0.00019178,2]
[420842199,1776621045234,-1643.52,0.00019178,2]
[420842200,1776621045243,-500.0,0.00019178,2]
[420842201,1776621045253,-500.0,0.00019178,2]
[420842202,1776621045262,-500.0,0.00019178,2]
[420842203,1776621045271,-500.0,0.00019178,2]
[420842204,1776621045280,-500.0,0.00019178,2]
[420842205,1776621045291,-507.97454005,0.00019178,2]
[420842206,1776621045300,-5618.08,0.00019178,2]
[420842207,1776621045309,-500.0,0.00019178,2]
[420842208,1776621045319,-500.0,0.00019178,2]
[420842209,1776621045329,-323.73735682,0.00019178,2]
[420842210,1776621045338,-500.0,0.00019178,2]
[420842211,1776621045348,-620.64845413,0.00019178,2]
[420842212,1776621045358,-500.0,0.00019178,2]
[420842213,1776621045367,-500.0,0.00019178,2]
[420842214,1776621045377,-2094.22,0.00019178,2]
[420842215,1776621045386,-500.0,0.00019178,2]
[420842216,1776621045396,-500.0,0.00019178,2]
[420842217,1776621045405,-500.0,0.00019178,2]
[420842218,1776621045414,-500.0,0.00019178,2]
[420842219,1776621045423,-630.05678255,0.00019178,2]
[420842220,1776621045433,-500.0,0.00019178,2]
[420842221,1776621045443,-500.0,0.00019178,2]
[420842222,1776621045452,-500.0,0.00019178,2]
[420842223,1776621045462,-816.35,0.00019178,2]
[420842224,1776621045471,-711.89,0.00019178,2]
[420842225,1776621045480,-500.0,0.00019178,2]
[420842226,1776621045489,-500.0,0.00019178,2]
[420842227,1776621045499,-1199.38,0.00019178,2]
[420842228,1776621045508,-541.66618952,0.00019178,2]
[420842229,1776621045519,-2199.77,0.00019178,2]
[420842231,1776621045529,-500.0,0.00019178,2]
[420842233,1776621045540,-1937.8,0.00019178,2]
[420842234,1776621045549,-500.0,0.00019178,2]
[420842235,1776621045558,-500.0,0.00019178,2]
[420842236,1776621045567,-510.86341701,0.00019178,2]
[420842237,1776621045577,-500.0,0.00019178,2]
[420842238,1776621045586,-3370.6,0.00019178,2]
[420842239,1776621045596,-500.0,0.00019178,2]
[420842240,1776621045605,-500.0,0.00019178,2]
[420842241,1776621045615,-500.0,0.00019178,2]
[420842242,1776621045624,-500.0,0.00019178,2]
[420842243,1776621045634,-500.0,0.00019178,2]
[420842244,1776621045644,-1641.8,0.00019178,2]
[420842245,1776621045653,-264.92896265,0.00019178,2]
[420842246,1776621045663,-500.0,0.00019178,2]
[420842247,1776621045672,-500.0,0.00019178,2]
[420842248,1776621045682,-500.0,0.00019178,2]
[420842249,1776621045691,-500.0,0.00019178,2]
[420842250,1776621045700,-500.0,0.00019178,2]
[420842251,1776621045710,-500.0,0.00019178,2]
[420842252,1776621045719,-500.0,0.00019178,2]
[420842253,1776621045729,-295.30102177,0.00019178,2]
[420842254,1776621045738,-500.0,0.00019178,2]
[420842255,1776621045747,-1103.78,0.00019178,2]
[420842256,1776621045756,-500.0,0.00019178,2]
[420842257,1776621045766,-500.0,0.00019178,2]
[420842258,1776621045775,-500.0,0.00019178,2]
[420842259,1776621045785,-454.57683176,0.00019178,2]
[420842260,1776621045795,-6379.11,0.00019178,2]
[420842261,1776621045805,-500.0,0.00019178,2]
[420842262,1776621045814,-680.52,0.00019178,2]
[420842263,1776621045824,-500.0,0.00019178,2]
[420842264,1776621045834,-500.0,0.00019178,2]
[420842265,1776621045844,-500.0,0.00019178,2]
[420842266,1776621045854,-500.0,0.00019178,2]
[420842267,1776621045863,-500.0,0.00019178,2]
[420842269,1776621045872,-1614.15,0.00019178,2]
[420842271,1776621045882,-530.01925544,0.00019178,2]
[420842273,1776621045891,-500.0,0.00019178,2]
[420842275,1776621045901,-16922.7,0.00019178,2]
[420842277,1776621045910,-500.0,0.00019178,2]
[420842279,1776621045920,-500.0,0.00019178,2]
[420842281,1776621045930,-500.0,0.00019178,2]
[420842283,1776621045939,-500.0,0.00019178,2]
[420842285,1776621045949,-505.50875836,0.00019178,2]
[420842287,1776621045958,-930.06,0.00019178,2]
[420842289,1776621045968,-514.6960087,0.00019178,2]
[420842291,1776621045978,-500.0,0.00019178,2]
[420842294,1776621045988,-500.0,0.00019178,2]
[420842296,1776621045998,-500.0,0.00019178,2]
[420842298,1776621046007,-500.0,0.00019178,2]
[420842300,1776621046016,-2630.68,0.00019178,2]
[420842301,1776621046026,-504.29153063,0.00019178,2]
[420842304,1776621046037,-589.64324992,0.00019178,2]
[420842306,1776621046047,-257.22136828,0.00019178,2]
[420842308,1776621046056,-442.78695998,0.00019178,2]
[420842309,1776621046067,-500.0,0.00019178,2]
[420842311,1776621046076,-500.0,0.00019178,2]
[420842313,1776621046086,-500.0,0.00019178,2]
[420842315,1776621046096,-500.0,0.00019178,2]
[420842317,1776621046105,-500.0,0.00019178,2]
[420842319,1776621046114,-500.0,0.00019178,2]
[420842321,1776621046123,-1863.08,0.00019178,2]
[420842324,1776621046134,-500.0,0.00019178,2]
[420842325,1776621046143,-500.0,0.00019178,2]
[420842327,1776621046154,-500.0,0.00019178,2]
[420842330,1776621046165,-4998.56,0.00019178,2]
[420842332,1776621046175,-500.0,0.00019178,2]